bitfinex/quotes_BTCUSD_20250703
["timestamp","ask_amount","ask_price","bid_price","bid_amount"]
[1751529572492,1.97547861,109510.0,109500.0,0.01500261]
[1751529572911,6.97547861,109510.0,109500.0,0.01500261]
[1751529573142,7.06691554,109510.0,109500.0,0.01500261]
[1751529577775,6.07333259,109510.0,109500.0,0.01500261]
[1751529577968,6.97547861,109510.0,109500.0,0.01500261]
[1751529579395,6.79087861,109510.0,109500.0,0.01500261]
[1751529579593,6.97539861,109510.0,109500.0,0.01500261]
[1751529580334,6.97539861,109510.0,109500.0,0.01520261]
[1751529580971,7.06683554,109510.0,109500.0,0.01520261]
[1751529582412,6.97539861,109510.0,109500.0,0.01520261]
[1751529587919,1.97539861,109510.0,109500.0,0.01520261]
[1751529588122,6.97539861,109510.0,109500.0,0.01520261]
[1751529590811,6.93881082,109510.0,109500.0,0.01520261]
[1751529592583,6.97539581,109510.0,109500.0,0.01520261]
[1751529592901,7.06683274,109510.0,109500.0,0.01520261]
[1751529600313,6.40869548,109510.0,109500.0,0.03160261]
[1751529600500,1.06869548,109510.0,109500.0,0.03160261]
[1751529600707,0.26113693,109510.0,109500.0,0.03160261]
[1751529600927,0.48570325,109510.0,109500.0,0.03160261]
[1751529601131,1.06170293,109510.0,109500.0,0.12280724]
[1751529601333,0.76098759,109510.0,109500.0,0.10346814]
[1751529601543,0.75998759,109510.0,109500.0,0.04874536]
[1751529601761,1.05870293,109510.0,109500.0,0.04874536]
[1751529601963,0.75898759,109510.0,109500.0,0.05274536]
[1751529602222,0.75998759,109510.0,109500.0,0.05474536]
[1751529602857,0.75998759,109510.0,109500.0,0.03760261]
[1751529603661,0.75998759,109510.0,109500.0,0.05943356]
[1751529604809,0.24383693,109510.0,109500.0,0.07652373]
[1751529605061,0.09383693,109510.0,109500.0,0.07652373]
[1751529605616,0.0024,109510.0,109500.0,0.37723907]
[1751529605819,0.0024,109510.0,109500.0,0.67795441]
[1751529606035,0.0024,109510.0,109500.0,0.40454937]
[1751529606632,0.0024,109510.0,109500.0,0.44103122]
[1751529607499,0.0024,109510.0,109500.0,0.14031588]
[1751529607710,0.0024,109510.0,109500.0,0.14259898]
[1751529607928,0.0024,109510.0,109500.0,0.44331432]
[1751529608141,0.0024,109510.0,109500.0,0.44103122]
[1751529608371,0.0024,109510.0,109500.0,0.40454937]
[1751529608624,0.1004,109520.0,109510.0,0.10271828]
[1751529608837,0.1004,109520.0,109510.0,0.30146124]
[1751529609011,0.1004,109520.0,109510.0,0.29917835]
[1751529609584,0.1004,109520.0,109510.0,0.59989369]
[1751529611112,0.1014,109520.0,109510.0,0.30117835]
[1751529612936,0.40211534,109520.0,109510.0,0.30117835]
[1751529613787,0.1014,109520.0,109510.0,0.30117835]
[1751529615400,0.1014,109520.0,109510.0,0.60189369]
[1751529615600,0.1014,109520.0,109510.0,0.30117835]
[1751529615803,0.1014,109520.0,109510.0,0.32862735]
[1751529616026,0.1014,109520.0,109510.0,0.31156773]
[1751529619099,0.1014,109520.0,109510.0,0.61228307]
[1751529619518,0.1014,109520.0,109510.0,0.31156773]
[1751529620262,0.1014,109520.0,109510.0,0.33887803]
[1751529621926,0.1014,109520.0,109510.0,0.63959337]
[1751529622132,0.1014,109520.0,109510.0,0.7310303]
[1751529622407,0.1014,109520.0,109510.0,0.43031496]
[1751529622550,0.1014,109520.0,109510.0,0.7310303]
[1751529623432,0.1014,109520.0,109510.0,0.76751215]
[1751529625611,0.1014,109520.0,109510.0,0.95443215]
[1751529626005,0.1014,109520.0,109510.0,0.98184463]
[1751529626498,0.1014,109520.0,109510.0,0.68112929]
[1751529626719,0.1014,109520.0,109510.0,0.98184463]
[1751529626913,0.1014,109520.0,109510.0,0.94536278]
[1751529628558,0.1014,109520.0,109510.0,0.89064]
[1751529629455,0.1014,109520.0,109510.0,0.9636037]
[1751529630958,0.1014,109520.0,109510.0,0.94177275]
[1751529634524,0.1014,109520.0,109510.0,0.94185275]
[1751529635577,0.1014,109520.0,109510.0,0.64113741]
[1751529635781,0.1014,109520.0,109510.0,0.94185275]
[1751529642726,0.1004,109520.0,109510.0,0.93985275]
[1751529643279,0.1014,109520.0,109510.0,0.99385275]
[1751529643459,0.1014,109520.0,109510.0,0.80685275]
[1751529643642,0.1014,109520.0,109510.0,0.99377275]
[1751529643988,0.1024,109520.0,109510.0,1.19666755]
[1751529644196,0.1024,109520.0,109510.0,0.99577275]
[1751529644318,0.1024,109520.0,109510.0,1.33577275]
[1751529644523,0.1014,109520.0,109510.0,1.33377275]
[1751529644948,0.1024,109520.0,109510.0,1.33677275]
[1751529645145,0.1024,109520.0,109510.0,1.26380905]
[1751529645753,0.1014,109520.0,109510.0,1.25980905]
[1751529646350,0.1014,109520.0,109510.0,1.26000905]
[1751529646562,0.1024,109520.0,109510.0,1.26200905]
[1751529647213,0.1024,109520.0,109510.0,0.96129371]
[1751529647416,0.1024,109520.0,109510.0,1.26200905]
[1751529652754,0.1024,109520.0,109510.0,1.26184905]
[1751529655269,0.1024,109520.0,109510.0,1.35305368]
[1751529655476,0.1024,109520.0,109510.0,1.26184905]
[1751529656263,0.1024,109520.0,109510.0,1.35305368]
[1751529656458,0.1024,109520.0,109510.0,1.26184905]
[1751529657492,0.1024,109520.0,109510.0,1.06146992]
[1751529657730,0.1024,109520.0,109510.0,1.35305368]
[1751529658262,0.1024,109520.0,109510.0,1.36218526]
[1751529658458,0.1024,109520.0,109510.0,1.35305368]
[1751529661044,0.1024,109520.0,109510.0,1.30305368]
[1751529661334,0.1024,109520.0,109510.0,1.35305368]
[1751529663700,0.1024,109520.0,109510.0,1.05233834]
[1751529663853,0.1024,109520.0,109510.0,1.35305368]
[1751529664023,0.02012784,109520.0,109510.0,1.37491024]
[1751529664960,0.02012784,109520.0,109510.0,1.35305368]
[1751529665161,0.02012784,109520.0,109510.0,1.26184905]
[1751529666869,0.02012784,109520.0,109510.0,0.96113371]
[1751529667091,0.02012784,109520.0,109510.0,1.26184905]
[1751529667489,0.02012784,109520.0,109510.0,1.07508905]
[1751529667714,0.02012784,109520.0,109510.0,1.18066905]
[1751529668663,0.03652784,109520.0,109510.0,1.25353261]
[1751529668874,0.33724318,109520.0,109510.0,0.95285727]
[1751529669158,0.35254318,109520.0,109510.0,0.58540827]
[1751529669339,0.35254318,109520.0,109510.0,0.30745134]
[1751529669532,0.35254318,109520.0,109510.0,0.49397134]
[1751529669880,0.66238852,109520.0,109510.0,0.42106778]
[1751529670084,0.36167318,109520.0,109510.0,0.42106778]
[1751529670200,0.05182784,109520.0,109510.0,0.4757175]
[1751529670395,0.36167318,109520.0,109510.0,0.4757175]
[1751529671006,0.36167318,109520.0,109510.0,0.42106778]
[1751529671214,0.36167318,109520.0,109510.0,0.47571856]
[1751529671440,0.35254318,109520.0,109510.0,0.47571856]
[1751529673225,0.36167318,109520.0,109510.0,0.47571856]
[1751529673425,0.37080326,109520.0,109510.0,0.47571856]
[1751529673631,0.36167318,109520.0,109510.0,0.47571856]
[1751529674244,0.35254318,109520.0,109510.0,0.47571856]
[1751529674446,0.36167326,109520.0,109510.0,0.47571856]
[1751529674851,0.33724318,109520.0,109510.0,0.47571856]
[1751529675368,0.33724318,109520.0,109510.0,0.51212531]
[1751529675912,0.34637318,109520.0,109510.0,0.51212531]
[1751529676319,0.35550326,109520.0,109510.0,0.51212531]
[1751529676518,0.37150326,109520.0,109510.0,0.32564531]
[1751529676740,0.37150326,109520.0,109510.0,0.51204531]
[1751529679310,0.37190326,109520.0,109510.0,0.51204531]
[1751529680322,0.36277318,109520.0,109510.0,0.51204531]
[1751529681213,0.36277318,109520.0,109510.0,0.5114827]
[1751529682357,0.34677318,109520.0,109510.0,0.5114827]
[1751529682701,0.35590334,109520.0,109510.0,0.5114827]
[1751529683110,0.34677318,109520.0,109510.0,0.5114827]
[1751529683316,0.33764318,109520.0,109510.0,0.5114827]
[1751529683513,0.34677318,109520.0,109510.0,0.5114827]
[1751529684238,0.68124909,109520.0,109510.0,0.5112827]
[1751529684442,0.68124901,109520.0,109510.0,0.5112827]
[1751529684647,0.67211868,109520.0,109510.0,0.5112827]
[1751529684822,0.66298852,109520.0,109510.0,0.5112827]
[1751529685023,0.36227318,109520.0,109510.0,0.5112827]
[1751529685232,0.04605784,109520.0,109510.0,0.5112827]
[1751529685408,0.35590326,109520.0,109510.0,0.5112827]
[1751529687333,0.34677318,109520.0,109510.0,0.5112827]
[1751529687963,0.02052784,109520.0,109510.0,0.61801963]
[1751529688197,0.02052784,109520.0,109510.0,0.89792822]
[1751529688415,0.02052784,109520.0,109510.0,0.84327744]
[1751529688627,0.02052784,109520.0,109510.0,0.916141]
[1751529689357,0.02052784,109520.0,109510.0,1.306141]
[1751529689753,0.02052784,109520.0,109510.0,1.3259155]
[1751529692987,0.02052784,109520.0,109510.0,1.00542566]
[1751529693192,0.02052784,109520.0,109510.0,1.3259155]
[1751529694828,0.02052784,109520.0,109510.0,1.00542566]
[1751529695028,0.02052784,109520.0,109510.0,1.3259155]
[1751529695747,0.02052784,109520.0,109510.0,1.00542566]
[1751529697237,0.02052784,109520.0,109510.0,1.02253253]
[1751529698356,0.02052784,109520.0,109510.0,1.0443621]
[1751529700033,0.02052784,109520.0,109510.0,1.04431016]
[1751529700451,0.02052784,109520.0,109510.0,0.99431016]
[1751529700651,0.02052784,109520.0,109510.0,1.04431016]
[1751529702208,0.02052784,109520.0,109510.0,1.02871016]
[1751529703284,0.02052784,109520.0,109510.0,1.04471016]
[1751529705210,0.02052784,109520.0,109510.0,1.02871016]
[1751529707936,0.02052784,109520.0,109510.0,0.97871016]
[1751529708149,0.02052784,109520.0,109510.0,1.02871016]
[1751529710487,0.02052784,109520.0,109510.0,0.97871016]
[1751529710664,0.02052784,109520.0,109510.0,1.02871016]
[1751529711056,0.02052784,109520.0,109510.0,0.97871016]
[1751529711256,0.02052784,109520.0,109510.0,1.02871016]
[1751529712014,0.02052784,109520.0,109510.0,1.32921122]
[1751529713181,0.3210289,109520.0,109510.0,0.79251016]
[1751529713361,0.66155996,109520.0,109510.0,0.34577323]
[1751529713564,1.22694999,109520.0,109510.0,0.32752466]
[1751529713764,1.65838692,109520.0,109510.0,0.36394211]
[1751529714125,1.56694999,109520.0,109510.0,0.3366445]
[1751529714404,1.56694999,109520.0,109510.0,0.27839748]
[1751529714811,1.56494999,109520.0,109510.0,0.2460801]
[1751529715016,1.56494999,109520.0,109510.0,0.4328401]
[1751529715218,1.56594999,109520.0,109510.0,0.4338401]
[1751529715373,1.56594999,109520.0,109510.0,0.4338483]
[1751529715799,0.91206127,109520.0,109510.0,0.4338483]
[1751529716174,0.91306127,109520.0,109510.0,0.4358483]
[1751529716374,0.91306127,109520.0,109510.0,0.43584325]
[1751529718047,0.92219202,109520.0,109510.0,0.43584325]
[1751529719377,0.91306161,109520.0,109510.0,0.43584325]
[1751529719602,0.90393095,109520.0,109510.0,0.43584325]
[1751529722514,0.90393095,109520.0,109510.0,0.24908325]
[1751529726717,0.90393095,109520.0,109510.0,0.24905693]
[1751529731211,0.90393095,109520.0,109510.0,0.23202517]
[1751529735180,0.91306145,109520.0,109510.0,0.23202517]
[1751529735758,1.19365793,109520.0,109510.0,0.23202517]
[1751529736167,1.18452743,109520.0,109510.0,0.23202517]
[1751529736423,1.67200433,109520.0,109510.0,0.23202517]
[1751529737530,1.67194933,109520.0,109510.0,0.23202517]
[1751529737935,1.37127243,109520.0,109510.0,0.23202517]
[1751529738789,1.76338626,109520.0,109510.0,0.23202517]
[1751529739209,1.86936404,109520.0,109510.0,0.23202517]
[1751529739415,1.77792711,109520.0,109510.0,0.23202517]
[1751529739616,2.07860401,109520.0,109510.0,0.23202517]
[1751529739821,7.07860401,109520.0,109510.0,0.23202517]
[1751529740028,6.77792711,109520.0,109510.0,0.23202517]
[1751529741409,6.77592711,109520.0,109510.0,0.22902517]
[1751529741613,6.77692711,109520.0,109510.0,0.23002517]
[1751529741872,6.77692711,109520.0,109510.0,0.23102517]
[1751529741873,6.51756135,109520.0,109510.0,0.23102517]
[1751529743531,7.01486135,109520.0,109510.0,0.23102517]
[1751529748665,7.06126135,109520.0,109510.0,0.23102517]
[1751529750095,7.06122135,109520.0,109510.0,0.23102517]
[1751529750808,2.06122135,109520.0,109510.0,0.23102517]
[1751529751101,7.15265828,109520.0,109510.0,0.23102517]
[1751529758359,7.06122135,109520.0,109510.0,0.23102517]
[1751529759024,7.04666815,109520.0,109510.0,0.21647197]
[1751529759754,7.03311094,109520.0,109510.0,0.20291476]
[1751529759953,7.02742726,109520.0,109510.0,0.19723108]
[1751529760176,7.02606123,109520.0,109510.0,0.19586505]
[1751529760374,6.8316315,109520.0,109510.0,0.18170217]
[1751529760543,6.81120878,109520.0,109510.0,0.16127945]
[1751529761948,7.39255329,109520.0,109510.0,0.16127945]
[1751529764784,1.13895546,109520.0,109510.0,0.19337945]
[1751529764987,1.62618437,109520.0,109510.0,0.19337945]
[1751529765193,1.2473585,109520.0,109510.0,0.19337945]
[1751529765412,1.452699,109520.0,109510.0,0.19337945]
[1751529765981,1.16505157,109520.0,109510.0,0.19337945]
[1751529766201,1.10988132,109520.0,109510.0,0.19337945]
[1751529766404,1.16505157,109520.0,109510.0,0.19337945]
[1751529766631,1.17418198,109520.0,109510.0,0.19337945]
[1751529767231,0.67688198,109520.0,109510.0,0.19337945]
[1751529767872,0.39609326,109520.0,109510.0,0.19337945]
[1751529769734,0.38696285,109520.0,109510.0,0.19337945]
[1751529770341,0.57396285,109520.0,109510.0,0.19337945]
[1751529770872,0.58309326,109520.0,109510.0,0.19337945]
[1751529771068,0.57396285,109520.0,109510.0,0.19337945]
[1751529773801,0.57396276,109520.0,109510.0,0.19337945]
[1751529774514,0.38696276,109520.0,109510.0,0.19337945]
[1751529774721,0.57376276,109520.0,109510.0,0.19337945]
[1751529775155,0.5646326,109520.0,109510.0,0.19337945]
[1751529775349,0.24397,109520.0,109510.0,0.19337945]
[1751529775566,0.5646326,109520.0,109510.0,0.19337945]
[1751529775742,0.58289301,109520.0,109510.0,0.19337945]
[1751529776148,0.57416268,109520.0,109510.0,0.19337945]
[1751529776569,0.05757,109520.0,109510.0,0.19337945]
[1751529776775,0.3691026,109520.0,109510.0,0.19337945]
[1751529777737,0.5559026,109520.0,109510.0,0.19337945]
[1751529777949,0.3691026,109520.0,109510.0,0.19337945]
[1751529778148,0.5559826,109520.0,109510.0,0.19337945]
[1751529779318,0.3230626,109520.0,109510.0,0.19337945]
[1751529779458,0.5558226,109520.0,109510.0,0.19337945]
[1751529779638,0.5649526,109520.0,109510.0,0.19337945]
[1751529780362,0.58321301,109520.0,109510.0,0.19337945]
[1751529781295,0.26255041,109520.0,109510.0,0.19337945]
[1751529781496,0.58321301,109520.0,109510.0,0.19337945]
[1751529785162,0.59234342,109520.0,109510.0,0.19337945]
[1751529785789,0.58321301,109520.0,109510.0,0.19337945]
[1751529786084,0.58317293,109520.0,109510.0,0.19337945]
[1751529786645,0.59230326,109520.0,109510.0,0.19337945]
[1751529788065,0.60143376,109520.0,109510.0,0.19337945]
[1751529788399,0.59230326,109520.0,109510.0,0.22066472]
[1751529789814,0.872849,109520.0,109510.0,0.22066472]
[1751529791879,0.88197941,109520.0,109510.0,0.22066472]
[1751529793006,0.30300417,109520.0,109510.0,0.22066472]
[1751529793211,0.04832,109520.0,109510.0,0.55768634]
[1751529793435,0.0024,109520.0,109510.0,0.25708217]
[1751529793791,0.0024,109520.0,109510.0,0.28441189]
[1751529795346,0.0024,109520.0,109510.0,0.24799444]
[1751529795902,0.0024,109520.0,109510.0,0.54859861]
[1751529796107,0.0024,109520.0,109510.0,0.24799444]
[1751529796306,0.0024,109520.0,109510.0,0.28442366]
[1751529796514,0.0024,109520.0,109510.0,0.30150065]
[1751529797131,0.0014,109520.0,109510.0,0.26407143]
[1751529797307,0.0014,109520.0,109510.0,0.26607143]
[1751529797504,0.0024,109520.0,109510.0,0.66111253]
[1751529797925,0.0024,109520.0,109510.0,0.60649754]
[1751529798330,0.0024,109520.0,109510.0,0.66110838]
[1751529798527,0.0024,109520.0,109510.0,0.36050421]
[1751529798735,0.0024,109520.0,109510.0,0.66110838]
[1751529800091,0.00089005,109520.0,109510.0,0.65959843]
[1751529802574,0.00089005,109520.0,109510.0,0.64252144]
[1751529805879,0.00089005,109520.0,109510.0,0.5879106]
[1751529808323,0.00089005,109520.0,109510.0,1.4794094]
[1751529808530,0.00089005,109520.0,109510.0,1.57053529]
[1751529808688,0.00089005,109520.0,109510.0,1.2699312]
[1751529808908,0.00129005,109520.0,109510.0,1.26080004]
[1751529809073,0.00129005,109520.0,109510.0,1.2973762]
[1751529809307,0.0004,109520.0,109510.0,1.2943762]
[1751529809555,0.0014,109520.0,109510.0,1.28924504]
[1751529809813,0.0014,109520.0,109510.0,1.30450728]
[1751529809952,0.0024,109520.0,109510.0,1.3013762]
[1751529810155,0.0024,109520.0,109510.0,1.29224504]
[1751529810756,0.0024,109520.0,109510.0,1.30137604]
[1751529811000,0.0024,109520.0,109510.0,1.29224504]
[1751529811158,0.0024,109520.0,109510.0,1.3013762]
[1751529812208,0.0024,109520.0,109510.0,0.98250962]
[1751529812409,0.0024,109520.0,109510.0,1.28311379]
[1751529812770,0.0024,109520.0,109510.0,1.29224495]
[1751529813216,0.0024,109520.0,109510.0,1.30137595]
[1751529813863,0.0024,109520.0,109510.0,1.29224495]
[1751529814037,0.0024,109520.0,109510.0,1.30137603]
[1751529814415,0.0024,109520.0,109510.0,1.29224495]
[1751529814831,0.0024,109520.0,109510.0,1.30137595]
[1751529815004,0.0024,109520.0,109510.0,1.30137603]
[1751529815205,0.0024,109520.0,109510.0,1.31050703]
[1751529815437,0.0024,109520.0,109510.0,1.30137603]
[1751529815899,0.0024,109520.0,109510.0,1.31050703]
[1751529816065,0.0024,109520.0,109510.0,1.30137603]
[1751529817083,0.0024,109520.0,109510.0,1.29224495]
[1751529817850,0.0024,109520.0,109510.0,1.29224504]
[1751529818085,0.0024,109520.0,109510.0,1.62565214]
[1751529818751,0.0024,109520.0,109510.0,1.64399321]
[1751529819417,0.0024,109520.0,109510.0,1.69399321]
[1751529819634,0.43542703,109560.0,109540.0,0.33190417]
[1751529819840,0.45127389,109560.0,109550.0,0.02723934]
[1751529820518,0.43547389,109560.0,109550.0,0.02723934]
[1751529820906,0.06172686,109560.0,109550.0,0.02723934]
[1751529821080,0.36233103,109560.0,109550.0,0.02723934]
[1751529821905,0.37033103,109560.0,109550.0,0.02823934]
[1751529823342,0.37333103,109560.0,109550.0,0.02823934]
[1751529824718,0.32745103,109560.0,109550.0,0.02823934]
[1751529825539,0.02684686,109560.0,109550.0,0.02823934]
[1751529825775,0.32745103,109560.0,109550.0,0.02823934]
[1751529828319,0.01144686,109560.0,109550.0,0.02823934]
[1751529828527,0.32117769,109560.0,109550.0,0.02823934]
[1751529828929,0.31205103,109560.0,109550.0,0.02823934]
[1751529829292,0.32117778,109560.0,109550.0,0.02823934]
[1751529831202,0.32117769,109560.0,109550.0,0.02823934]
[1751529831339,0.01144686,109560.0,109550.0,0.02823934]
[1751529831719,0.31205103,109560.0,109550.0,0.02823934]
[1751529832058,0.32117769,109560.0,109550.0,0.02823934]
[1751529832863,0.02057352,109560.0,109550.0,0.02823934]
[1751529833076,0.32117769,109560.0,109550.0,0.02823934]
[1751529833299,0.32117769,109560.0,109550.0,0.06455846]
[1751529833496,0.31205103,109560.0,109550.0,0.06455846]
[1751529834066,0.32117778,109560.0,109550.0,0.06455846]
[1751529834504,0.31205103,109560.0,109550.0,0.06455846]
[1751529834882,0.01144686,109560.0,109550.0,0.06455846]
[1751529835165,0.31205103,109560.0,109550.0,0.06455846]
[1751529836144,0.01144686,109560.0,109550.0,0.06455846]
[1751529836343,0.31205103,109560.0,109550.0,0.06455846]
[1751529837087,0.01144686,109560.0,109550.0,0.06455846]
[1751529837280,0.31205103,109560.0,109550.0,0.06455846]
[1751529837849,0.32117769,109560.0,109550.0,0.06455846]
[1751529838138,0.01144686,109560.0,109550.0,0.06455846]
[1751529838313,0.01144686,109560.0,109550.0,0.08015846]
[1751529838477,0.31205103,109560.0,109550.0,0.08015846]
[1751529839622,0.31205103,109560.0,109550.0,0.06455846]
[1751529840245,0.31205103,109560.0,109550.0,0.09844052]
[1751529840446,0.01144686,109560.0,109550.0,0.46096022]
[1751529840653,0.01144686,109560.0,109550.0,0.51543891]
[1751529840804,0.01144686,109560.0,109550.0,0.24227274]
[1751529841482,0.00844686,109560.0,109550.0,0.24227274]
[1751529841693,0.00944686,109560.0,109550.0,0.54287691]
[1751529841868,0.00944686,109560.0,109550.0,0.24227274]
[1751529843225,0.00144686,109560.0,109550.0,0.24127274]
[1751529843417,0.00444686,109560.0,109550.0,0.24127274]
[1751529844028,0.30505103,109560.0,109550.0,0.24127274]
[1751529845321,0.00444686,109560.0,109550.0,0.24127274]
[1751529845522,0.30505103,109560.0,109550.0,0.24127274]
[1751529846341,0.30505103,109560.0,109550.0,0.20495362]
[1751529848834,0.00444686,109560.0,109550.0,0.20495362]
[1751529849029,0.30505103,109560.0,109550.0,0.20495362]
[1751529849416,0.30505103,109560.0,109550.0,0.18895362]
[1751529850513,0.00444686,109560.0,109550.0,0.18895362]
[1751529850937,0.30505103,109560.0,109550.0,0.20445362]
[1751529853205,0.00444686,109560.0,109550.0,0.20445362]
[1751529853417,0.30505103,109560.0,109550.0,0.20445362]
[1751529855358,0.00444686,109560.0,109550.0,0.20445362]
[1751529855591,0.30505103,109560.0,109550.0,0.20445362]
[1751529857575,0.30505103,109560.0,109550.0,0.20306717]
[1751529858814,0.30505103,109560.0,109550.0,0.18756717]
[1751529864057,0.30505103,109560.0,109550.0,0.20346717]
[1751529867969,0.30505103,109560.0,109550.0,0.20472012]
[1751529871533,0.30505103,109560.0,109550.0,0.17728212]
[1751529883299,0.6056552,109560.0,109550.0,0.16138212]
[1751529884072,0.6056552,109560.0,109550.0,0.14716857]
[1751529886285,0.6056552,109560.0,109550.0,0.16366857]
[1751529887755,0.00444686,109560.0,109550.0,0.16366857]
[1751529887957,0.6056552,109560.0,109550.0,0.16366857]
[1751529888599,0.30505103,109560.0,109550.0,0.16366857]
[1751529889041,0.30505103,109560.0,109550.0,0.17966857]
[1751529889928,0.6056552,109560.0,109550.0,0.17966857]
[1751529891503,0.30505103,109560.0,109550.0,0.17966857]
[1751529891860,0.30505103,109560.0,109550.0,0.17986857]
[1751529892066,0.6056552,109560.0,109550.0,0.17986857]
[1751529896074,0.30505103,109560.0,109550.0,0.17986857]
[1751529897629,0.00444686,109560.0,109550.0,0.17986857]
[1751529897831,0.30505103,109560.0,109550.0,0.18215063]
[1751529898722,0.30505103,109560.0,109550.0,0.17986857]
[1751529901338,0.00444686,109560.0,109550.0,0.17986857]
[1751529901544,0.30505103,109560.0,109550.0,0.17986857]
[1751529903686,0.6056552,109560.0,109550.0,0.16386857]
[1751529904464,0.6056552,109560.0,109550.0,0.14736857]
[1751529905903,0.6056552,109560.0,109550.0,0.16286857]
[1751529907085,0.6056552,109560.0,109550.0,0.14736857]
[1751529909066,0.6056552,109560.0,109550.0,0.18062348]
[1751529909479,0.6056552,109560.0,109550.0,0.21110281]
[1751529909684,0.6210552,109560.0,109550.0,0.21110281]
[1751529909876,0.6210552,109560.0,109550.0,0.24750585]
[1751529910323,0.6210552,109560.0,109550.0,0.15606892]
[1751529910524,0.6056552,109560.0,109550.0,0.15606892]
[1751529916826,0.61478186,109560.0,109550.0,0.15606892]
[1751529917235,0.6056552,109560.0,109550.0,0.15606892]
[1751529924385,0.61478195,109560.0,109550.0,0.15606892]
[1751529924607,0.6056552,109560.0,109550.0,0.15606892]
[1751529925896,0.30505103,109560.0,109550.0,0.17136892]
[1751529926131,0.30505103,109560.0,109550.0,0.18676892]
[1751529934600,0.30505103,109560.0,109550.0,0.15036588]
[1751529936810,0.6056552,109560.0,109550.0,0.15036588]
[1751529937307,0.6056552,109560.0,109550.0,0.18679614]
[1751529937528,0.6056552,109560.0,109550.0,0.2022202]
[1751529938525,0.30505103,109560.0,109550.0,0.2022202]
[1751529939302,0.30505103,109560.0,109550.0,0.21381981]
[1751529939833,0.30505103,109560.0,109550.0,0.17738955]
[1751529941219,0.30505103,109560.0,109550.0,0.18684187]
[1751529942823,0.30505103,109560.0,109550.0,0.19584509]
[1751529944139,0.30505103,109560.0,109550.0,0.2045617]
[1751529944528,0.30505103,109560.0,109550.0,0.2130906]
[1751529946376,0.30505103,109560.0,109550.0,0.22134661]
[1751529948006,0.30505103,109560.0,109550.0,0.22892598]
[1751529949371,0.30505103,109560.0,109550.0,0.23613513]
[1751529949951,0.30505103,109560.0,109550.0,0.24294819]
[1751529956258,0.30505103,109560.0,109550.0,0.33438512]
[1751529958042,0.00444686,109560.0,109550.0,0.63498929]
[1751529958375,0.00444686,109560.0,109550.0,0.5805106]
[1751529958581,0.00444686,109560.0,109550.0,1.12133154]
[1751529958788,0.00444686,109560.0,109550.0,1.17571388]
[1751529958986,0.00444686,109560.0,109550.0,1.0297111]
[1751529959189,0.00444686,109560.0,109550.0,1.22140429]
[1751529959365,0.00444686,109560.0,109550.0,1.21227613]
[1751529959595,0.00444686,109560.0,109550.0,1.02058285]
[1751529959771,0.00144686,109560.0,109550.0,1.02058285]
[1751529960109,0.00044686,109560.0,109550.0,1.02058285]
[1751529960573,0.00044686,109560.0,109550.0,1.02158285]
[1751529960939,0.00044686,109560.0,109550.0,1.04927217]
[1751529961140,0.00144686,109560.0,109550.0,1.04927217]
[1751529965614,0.00144686,109560.0,109550.0,0.748668]
[1751529965834,0.24794353,109580.0,109560.0,0.032]
[1751529966058,0.30060417,109570.0,109560.0,0.17794338]
[1751529966263,0.30060417,109570.0,109560.0,0.36358338]
[1751529966934,0.30060417,109570.0,109560.0,0.3806147]
[1751529967586,0.24794353,109580.0,109560.0,0.3806147]
[1751529967796,0.001,109570.0,109560.0,0.3806147]
[1751529968462,0.002,109570.0,109560.0,0.3806147]
[1751529970570,0.002,109570.0,109560.0,1.02121887]
[1751529970806,0.002,109570.0,109560.0,1.33995484]
[1751529971050,0.002,109570.0,109560.0,1.03935067]
[1751529971486,0.002,109570.0,109560.0,1.04300867]
[1751529971954,0.30060417,109580.0,109570.0,0.0326]
[1751529972191,0.30300417,109590.0,109570.0,0.23184116]
[1751529972415,0.30300417,109590.0,109580.0,0.21287185]
[1751529972635,0.30300417,109590.0,109580.0,0.22990317]
[1751529972855,0.31407042,109590.0,109580.0,0.22990317]
[1751529973078,0.30300417,109590.0,109580.0,0.22990317]
[1751529974599,0.30300417,109590.0,109580.0,0.22890317]
[1751529974816,0.31405514,109590.0,109580.0,0.22890317]
[1751529975420,0.31505514,109590.0,109580.0,0.22890317]
[1751529976882,0.32417931,109590.0,109580.0,0.22890317]
[1751529977325,0.31505514,109590.0,109580.0,0.22990317]
[1751529978029,0.32417931,109590.0,109580.0,0.22990317]
[1751529978238,0.31505514,109590.0,109580.0,0.22990317]
[1751529981093,0.0034,109590.0,109580.0,0.22990317]
[1751529981327,0.31312834,109590.0,109580.0,0.22990317]
[1751529981979,0.32225267,109590.0,109580.0,0.04426317]
[1751529982203,0.31312834,109590.0,109580.0,0.22986317]
[1751529982643,0.30400417,109590.0,109580.0,0.22986317]
[1751529983631,0.30400417,109590.0,109580.0,0.24586317]
[1751529984427,0.30400417,109590.0,109580.0,0.28217233]
[1751529985426,0.30400417,109590.0,109580.0,0.29747233]
[1751529985623,0.30400417,109590.0,109580.0,0.28217233]
[1751529985874,0.30400417,109590.0,109580.0,0.25594048]
[1751529987384,0.30400417,109590.0,109580.0,0.23994048]
[1751529988958,0.65385759,109590.0,109580.0,0.05434048]
[1751529989171,0.97319292,109590.0,109580.0,0.01803132]
[1751529989388,0.96406842,109590.0,109580.0,0.01803132]
[1751529989588,1.29966842,109590.0,109580.0,0.01804958]
[1751529990323,1.29866842,109590.0,109580.0,0.01804958]
[1751529990555,1.30066842,109590.0,109580.0,0.01804958]
[1751529990811,1.30066842,109590.0,109580.0,0.01704958]
[1751529992503,0.03395207,109570.0,109560.0,0.22190916]
[1751529992676,0.33455624,109570.0,109560.0,0.23895493]
[1751529993090,0.32543008,109570.0,109560.0,0.23895493]
[1751529994140,0.32543008,109570.0,109560.0,0.24195493]
[1751529994344,0.33455608,109570.0,109560.0,0.24395493]
[1751529995640,0.02482583,109570.0,109560.0,0.24395493]
[1751529995838,0.30060417,109570.0,109560.0,0.24395493]
[1751529996042,0.30060417,109570.0,109560.0,0.25915493]
[1751529996454,0.05807607,109580.0,109560.0,0.27475493]
[1751529996634,0.30060417,109570.0,109560.0,0.27475493]
[1751529997301,0.30060417,109570.0,109560.0,0.27175493]
[1751529997655,0.30060417,109570.0,109560.0,0.27375493]
[1751529998032,0.02462516,109580.0,109560.0,0.08615493]
[1751529998245,0.02462508,109580.0,109560.0,0.27175493]
[1751529998451,0.30060417,109570.0,109560.0,0.27475493]
[1751529999425,0.30060417,109570.0,109560.0,0.25715493]
[1751530000404,0.30060417,109570.0,109560.0,0.25915493]
[1751530001049,0.06790132,109580.0,109560.0,0.25915493]
[1751530001264,0.30060417,109570.0,109560.0,0.25915493]
[1751530002645,0.30060417,109570.0,109560.0,0.27175493]
[1751530002840,0.30060417,109570.0,109560.0,0.27375493]
[1751530003398,0.040525,109580.0,109560.0,0.27375493]
[1751530003625,0.30060417,109570.0,109560.0,0.27175493]
[1751530003840,0.0155,109580.0,109560.0,0.87596327]
[1751530004053,0.0183,109590.0,109580.0,0.0312]
[1751530004054,0.0024,109590.0,109580.0,0.0312]